bitfinex/quotes_ETHUSD_20251124
["timestamp","ask_amount","ask_price","bid_price","bid_amount"]
[1764020523697,0.9485,2971.5,2971.4,0.214]
[1764020523985,0.9485,2971.5,2971.4,6.24624457]
[1764020524175,0.9485,2971.5,2971.4,9.61166154]
[1764020528601,0.9485,2971.5,2971.4,4.30501108]
[1764020530090,0.9485,2971.5,2971.4,4.30601108]
[1764020543234,1.26328813,2971.5,2971.4,0.001]
[1764020543735,5.09164052,2971.5,2971.1,0.001]
[1764020543939,0.4597,2971.2,2971.1,0.001]
[1764020544115,0.77448813,2971.2,2971.1,0.001]
[1764020544317,1.24758813,2971.2,2971.1,0.001]
[1764020545737,4.61323164,2971.2,2971.1,0.001]
[1764020545932,5.79875045,2971.2,2971.1,0.001]
[1764020546318,5.0745548,2971.2,2971.1,0.001]
[1764020547221,5.4800588,2971.2,2971.1,0.001]
[1764020547987,0.405504,2971.1,2970.8,0.001]
[1764020548124,0.405504,2970.5,2970.0,0.001]
[1764020548325,0.4597,2970.1,2969.1,0.001]
[1764020548529,0.77448813,2970.0,2969.6,3.36838851]
[1764020548839,0.9328,2970.0,2969.8,3.36714146]
[1764020549931,0.9328,2970.0,2969.7,0.001]
[1764020554560,4.70530736,2970.0,2969.7,0.001]
[1764020559187,10.32509843,2970.0,2969.7,0.001]
[1764020559386,13.6919488,2970.0,2969.7,0.001]
[1764020559589,1.057104,2969.8,2969.7,0.001]
[1764020559767,1.36900461,2969.8,2969.7,0.001]
[1764020559964,1.84210461,2969.8,2969.7,0.001]
[1764020560358,5.20933472,2969.8,2969.7,0.001]
[1764020560694,6.75607388,2969.8,2969.7,0.001]
[1764020561709,6.97007388,2969.8,2969.7,0.001]
[1764020562388,6.65817327,2969.8,2969.7,0.001]
[1764020562908,5.11143411,2969.8,2969.7,0.001]
[1764020565204,5.4228774,2969.8,2969.7,0.001]
[1764020565503,5.11143411,2969.8,2969.7,0.001]
[1764020566220,5.42282519,2969.8,2969.7,0.001]
[1764020566899,2.05559508,2969.8,2969.7,0.001]
[1764020567098,2.28666959,2969.8,2969.7,0.001]
[1764020567307,2.59811059,2969.8,2969.7,0.001]
[1764020567500,2.19260659,2969.8,2969.7,0.001]
[1764020567705,1.650141,2969.8,2969.7,0.001]
[1764020568403,5.01737111,2969.8,2969.7,0.001]
[1764020569901,1.650141,2969.8,2969.7,0.001]
[1764020570424,5.01737111,2969.8,2969.7,0.001]
[1764020570720,2.48878142,2969.8,2969.7,0.001]
[1764020572239,5.85601153,2969.8,2969.7,0.001]
[1764020572799,2.01568142,2969.8,2969.7,0.001]
[1764020573009,1.643741,2969.8,2969.7,0.001]
[1764020573413,1.429741,2969.8,2969.7,0.001]
[1764020573612,0.963041,2969.8,2969.7,0.001]
[1764020574131,1.429741,2969.8,2969.7,0.001]
[1764020578241,2.15280317,2969.8,2969.7,0.001]
[1764020578443,2.72638541,2969.8,2969.7,0.001]
[1764020580150,1.49420317,2969.8,2969.7,0.001]
[1764020580626,1.96090317,2969.8,2969.7,0.001]
[1764020581166,5.32813328,2969.8,2969.7,0.001]
[1764020581967,1.96090317,2969.8,2969.7,0.001]
[1764020582328,5.32813328,2969.8,2969.7,0.001]
[1764020582524,6.2384986,2969.8,2969.7,0.001]
[1764020582761,2.86356849,2969.8,2969.7,0.001]
[1764020583371,6.6363026,2969.8,2969.7,0.001]
[1764020584055,3.26907249,2969.8,2969.7,0.001]
[1764020584643,3.48307249,2969.8,2969.7,0.001]
[1764020584975,3.01637249,2969.8,2969.7,0.001]
[1764020585196,2.61086849,2969.8,2969.7,0.001]
[1764020585584,3.07756849,2969.8,2969.7,0.001]
[1764020586782,6.4447986,2969.8,2969.7,0.001]
[1764020593313,6.8503026,2969.8,2969.7,0.001]
[1764020600816,11.08926797,2969.8,2969.7,0.001]
[1764020601016,7.57589671,2969.8,2969.7,0.001]
[1764020601348,7.71090709,2969.8,2969.7,0.001]
[1764020602327,11.41026076,2969.8,2969.7,0.001]
[1764020602837,0.405504,2969.5,2969.4,0.001]
[1764020603002,29.08383623,2969.5,2969.4,0.001]
[1764020603209,15.96295523,2969.5,2969.4,0.001]
[1764020603432,14.68449408,2969.5,2969.4,0.001]
[1764020603726,14.81851665,2969.5,2969.4,0.001]
[1764020603926,40.40432804,2969.5,2969.4,0.001]
[1764020604140,42.21107767,2969.5,2969.4,0.001]
[1764020604294,43.77189833,2969.5,2969.4,0.001]
[1764020604500,46.30424207,2969.5,2969.4,0.001]
[1764020605238,37.90235007,2969.5,2969.4,0.001]
[1764020605740,38.29265934,2969.5,2969.4,0.001]
[1764020605923,46.30424207,2969.5,2969.4,0.001]
[1764020607308,44.49749244,2969.5,2969.4,0.001]
[1764020608150,28.49162555,2969.5,2969.4,0.001]
[1764020608318,19.54238655,2969.5,2969.4,0.001]
[1764020608522,18.24059255,2969.5,2969.4,0.001]
[1764020608718,17.49830407,2969.5,2969.4,0.001]
[1764020609022,15.38483807,2969.5,2969.4,0.001]
[1764020609222,8.24683753,2969.5,2969.4,0.001]
[1764020609422,8.50133315,2969.5,2969.4,0.001]
[1764020609650,8.00571698,2969.5,2969.4,0.001]
[1764020609855,8.32580709,2969.5,2969.4,0.001]
[1764020610423,8.73131109,2969.5,2969.4,0.001]
[1764020611624,8.73027641,2969.5,2969.4,0.001]
[1764020611852,8.02617641,2969.5,2969.4,0.001]
[1764020612148,8.24017641,2969.5,2969.4,0.001]
[1764020612526,6.22532902,2969.5,2969.4,0.001]
[1764020612726,6.71542902,2969.5,2969.4,0.001]
[1764020615125,37.61670354,2969.5,2969.4,0.001]
[1764020615326,17.4315448,2969.5,2969.4,0.001]
[1764020615641,17.21789223,2969.5,2969.4,0.001]
[1764020615834,20.14227743,2969.5,2969.4,0.001]
[1764020616035,12.99728343,2969.5,2969.4,0.001]
[1764020617024,10.46246843,2969.5,2969.4,0.001]
[1764020617324,15.36712343,2969.5,2969.4,0.001]
[1764020617826,14.80524943,2969.5,2969.4,0.001]
[1764020618157,14.84574443,2969.5,2969.4,0.001]
[1764020618338,13.94427689,2969.5,2969.4,0.001]
[1764020618657,12.12629689,2969.5,2969.4,0.001]
[1764020619456,11.42219689,2969.5,2969.4,0.001]
[1764020619634,15.64500639,2969.5,2969.4,0.001]
[1764020619838,17.66076684,2969.5,2969.4,0.001]
[1764020620353,23.0908515,2969.5,2969.4,0.001]
[1764020620558,16.8946335,2969.5,2969.4,0.001]
[1764020620960,16.8946335,2969.5,2968.7,0.001]
[1764020620961,0.4802,2966.7,2965.6,0.1512]
[1764020621161,0.405504,2966.6,2965.9,0.1512]
[1764020621454,1.65808871,2966.6,2965.9,0.1512]
[1764020621654,0.405504,2966.4,2965.9,0.1512]
[1764020621855,0.405504,2966.2,2965.5,0.1512]
[1764020622060,0.405504,2966.0,2965.5,0.1512]
[1764020622464,0.590304,2965.9,2965.5,0.1512]
[1764020622632,1.30973177,2965.9,2965.5,0.1512]
[1764020622827,1.51111495,2965.9,2965.5,0.1512]
[1764020623033,0.405504,2966.1,2965.8,0.1512]
[1764020623241,0.405504,2965.9,2965.5,0.1512]
[1764020624260,0.4802,2965.6,2965.4,0.003]
[1764020624567,0.619504,2965.5,2965.4,0.003]
[1764020625261,4.96191662,2965.5,2965.4,0.003]
[1764020625466,5.82880976,2965.5,2965.4,0.003]
[1764020626159,6.55440387,2965.5,2965.4,0.003]
[1764020626405,7.54704342,2965.5,2965.4,0.003]
[1764020627067,6.84294342,2965.5,2965.4,0.003]
[1764020627241,2.21299125,2965.5,2965.4,0.1542]
[1764020627439,5.58510387,2965.5,2965.4,0.003]
[1764020628232,4.71821073,2965.5,2965.4,0.003]
[1764020629228,5.43079378,2965.5,2965.4,0.003]
[1764020629862,5.21579378,2965.5,2965.4,0.003]
[1764020630030,6.30469232,2965.5,2965.4,0.003]
[1764020630687,6.30469232,2965.5,2964.1,0.006]
[1764020630688,0.1753,2964.9,2964.1,0.006]
[1764020630873,0.1753,2964.9,2962.6,0.1243939]
[1764020630874,0.405504,2963.6,2962.7,0.1662]
[1764020631078,1.1986321,2963.5,2962.7,0.1662]
[1764020631254,0.215,2963.4,2962.7,0.3324]
[1764020631791,0.620504,2963.4,2963.3,0.1662]
[1764020632282,0.405504,2963.3,2962.7,0.1662]
[1764020632453,0.405504,2963.3,2962.7,0.3324]
[1764020633581,6.74946004,2963.2,2962.7,0.3324]
[1764020633786,0.405504,2963.1,2962.7,0.1662]
[1764020634084,0.405504,2962.9,2962.6,0.1243939]
[1764020634260,0.600404,2962.9,2962.6,0.1243939]
[1764020634466,0.82147569,2962.9,2962.6,0.1243939]
[1764020635056,0.897904,2962.7,2962.6,0.1243939]
[1764020635368,1.31317569,2962.9,2962.6,0.1243939]
[1764020635690,0.94059411,2963.0,2962.6,0.1243939]
[1764020635691,3.5907358,2963.2,2962.8,0.1662]
[1764020635991,3.5907358,2963.2,2963.1,0.1662]
[1764020635992,0.216,2963.2,2963.1,0.1662]
[1764020636287,3.59073002,2963.2,2963.1,0.1662]
[1764020636657,1.13109811,2963.1,2962.6,0.1243939]
[1764020636994,1.13109811,2963.1,2959.6,3.37876404]
[1764020636995,0.6383,2962.7,2961.6,6.93094592]
[1764020637195,1.18624011,2963.5,2961.2,0.1662]
[1764020637196,0.1949,2963.7,2962.2,0.72559411]
[1764020637507,0.216,2963.6,2962.4,6.75128274]
[1764020637720,0.216,2963.6,2962.5,0.69174827]
[1764020638011,3.59027453,2963.6,2963.5,0.1662]
[1764020638414,3.37393299,2963.9,2963.5,0.3324]
[1764020638586,3.37393299,2963.9,2963.7,0.1662]
[1764020638932,3.37393299,2963.9,2963.8,0.1662]
[1764020639120,3.37366269,2964.2,2963.8,0.1662]
[1764020639284,3.58966269,2964.2,2964.1,0.1662]
[1764020639481,8.36587091,2964.2,2963.1,0.1662]
[1764020639799,6.96332538,2964.2,2962.7,0.72559411]
[1764020640011,6.96332538,2964.2,2962.8,0.1662]
[1764020640317,0.70606543,2964.1,2962.8,0.1662]
[1764020640617,1.47300451,2964.1,2962.8,0.1662]
[1764020640777,0.70599981,2964.0,2962.8,0.1662]
[1764020640985,0.405504,2963.8,2962.8,0.1662]
[1764020641198,0.216,2963.7,2962.8,0.1662]
[1764020641396,0.405504,2963.6,2962.8,0.1662]
[1764020641597,6.74877678,2963.5,2962.2,3.37586928]
[1764020641782,0.71542808,2963.4,2962.5,0.1662]
[1764020641982,0.216,2963.3,2962.5,0.1662]
[1764020642222,0.216,2963.3,2963.2,0.1662]
[1764020643603,4.29794708,2963.3,2963.2,0.1662]
[1764020644402,0.92333095,2963.3,2963.2,0.1662]
[1764020644796,3.59061613,2963.3,2963.2,0.1662]
[1764020645454,4.2984577,2963.3,2963.2,0.1662]
[1764020646138,4.0824577,2963.3,2963.2,0.1662]
[1764020646318,4.2984577,2963.3,2963.2,0.1662]
[1764020646948,0.405504,2963.2,2962.1,0.1662]
[1764020647124,0.405504,2963.2,2961.7,6.7528784]
[1764020647125,0.92384157,2963.1,2962.4,0.1662]
[1764020647444,0.70784157,2963.0,2962.4,0.1662]
[1764020647750,0.88968008,2963.5,2962.9,3.54126871]
[1764020647915,0.70992411,2963.4,2963.0,0.1662]
[1764020648123,0.216,2963.6,2963.0,0.1662]
[1764020648352,0.70985774,2963.5,2963.0,0.1662]
[1764020648553,0.70985774,2963.4,2963.0,0.85783404]
[1764020648720,0.70985774,2963.3,2963.0,0.85783404]
[1764020648921,0.216,2963.6,2963.5,0.1662]
[1764020649262,5.50003981,2963.6,2963.1,0.1662]
[1764020649430,1.60141661,2963.5,2963.1,0.1662]
[1764020649634,0.71084405,2963.4,2963.1,0.85783206]
[1764020649832,0.71084405,2963.3,2963.2,3.37473002]
[1764020650151,0.71284405,2963.3,2963.2,0.3324]
[1764020650327,1.91338061,2963.3,2963.2,0.3324]
[1764020650855,0.71284405,2963.3,2963.2,1.05799411]
[1764020651030,0.002,2963.3,2963.2,1.05799411]
[1764020651231,0.71752866,2963.3,2963.2,1.83876139]
[1764020651860,0.71752866,2963.3,2963.2,5.21349141]
[1764020652029,0.002,2963.3,2963.2,5.21349141]
[1764020653565,0.31300468,2963.3,2963.2,5.21349141]
[1764020654133,1.02976128,2963.3,2963.2,5.21349141]
[1764020656065,1.02976128,2963.3,2963.2,0.1662]
[1764020656367,2.21600139,2963.3,2963.2,0.1662]
[1764020656666,1.02976128,2963.3,2963.2,0.1662]
[1764020657040,1.92596086,2963.3,2963.2,0.1662]
[1764020657351,0.7187566,2963.3,2963.2,0.1662]
[1764020657558,1.0301087,2963.3,2963.2,0.1662]
[1764020658451,9.34413178,2963.3,2962.5,0.001]
[1764020658653,0.89685991,2962.9,2962.5,0.72659411]
[1764020658847,1.0281087,2962.8,2962.5,0.72659411]
[1764020659169,1.0281087,2962.7,2962.5,3.54270655]
[1764020659464,1.0281087,2962.6,2962.5,0.89279411]
[1764020659766,1.0281087,2962.6,2962.5,4.26832153]
[1764020659967,1.0281087,2962.6,2962.5,4.43452153]
[1764020660469,1.0281087,2962.6,2962.5,1.05899411]
[1764020661038,5.82172758,2962.6,2962.5,0.001]
[1764020661238,2.82182852,2962.6,2962.5,0.001]
[1764020661437,6.197242,2962.6,2962.5,0.001]
[1764020662050,1.0281087,2962.6,2962.5,0.001]
[1764020662245,1.2441087,2962.6,2962.5,0.001]
[1764020663166,5.6168102,2962.6,2962.5,0.001]
[1764020663369,9.90482368,2962.6,2962.3,0.001]
[1764020663557,0.452,2962.4,2962.3,0.001]
[1764020663760,1.4801087,2962.4,2962.3,0.001]
[1764020663942,2.47059107,2962.4,2962.3,0.001]
[1764020664142,4.72987239,2962.4,2962.3,0.001]
[1764020664444,6.30683244,2962.4,2962.3,0.001]
[1764020665163,8.10332144,2962.4,2962.3,0.001]
[1764020665971,7.64272144,2962.4,2962.3,0.001]
[1764020666375,6.06223244,2962.4,2962.3,0.001]
[1764020666946,8.31932144,2962.4,2962.3,0.001]
[1764020667142,6.52283244,2962.4,2962.3,0.001]
[1764020668047,6.06223244,2962.4,2962.3,0.001]
[1764020668273,7.25922531,2962.4,2962.3,0.001]
[1764020670281,6.06223244,2962.4,2962.3,0.001]
[1764020670975,6.52283244,2962.4,2962.3,0.001]
[1764020672280,7.41949101,2962.4,2962.3,0.001]
[1764020674186,8.85092342,2962.4,2962.3,0.001]
[1764020674353,9.45041955,2962.4,2962.3,0.001]
[1764020675199,7.65393055,2962.4,2962.3,0.001]
[1764020676290,2.22299324,2962.4,2962.3,0.1672]
[1764020676531,0.3113521,2962.4,2962.3,0.001]
[1764020676872,0.3113521,2962.4,2962.3,0.1672]
[1764020677597,4.13899347,2962.4,2962.3,0.001]
[1764020677912,6.69062237,2962.4,2962.3,0.001]
[1764020678570,13.34111048,2962.4,2962.3,0.001]
[1764020678770,0.72559411,2962.1,2962.0,0.001]
[1764020678971,2.20681766,2962.1,2962.0,0.001]
[1764020679174,2.66741766,2962.1,2962.0,0.001]
[1764020679506,5.07149441,2962.1,2962.0,0.001]
[1764020679869,4.1013003,2962.1,2962.0,0.001]
[1764020680070,3.66537639,2962.1,2962.0,0.001]
[1764020680598,2.94750494,2962.1,2962.0,0.001]
[1764020680780,6.32348819,2962.1,2962.0,0.001]
[1764020680981,7.04080823,2962.1,2962.0,0.001]
[1764020681597,0.01589,2961.3,2961.2,0.1662]
[1764020681973,0.01589,2961.3,2961.2,0.3324]
[1764020682174,0.01589,2961.3,2961.2,0.4986]
[1764020682374,0.01589,2961.3,2961.2,0.3324]
[1764020682998,0.01589,2961.3,2960.9,0.1662]
[1764020683327,3.39278528,2961.3,2960.9,0.1662]
[1764020684227,0.216,2961.2,2960.9,0.1662]
[1764020685227,4.07569142,2961.1,2960.9,0.1662]
[1764020685434,3.37704568,2961.2,2960.9,0.1662]
[1764020685618,0.216,2961.0,2960.9,0.1662]
[1764020686002,0.216,2961.0,2960.9,0.3324]
[1764020686299,0.3111908,2961.1,2960.9,0.001]
[1764020686549,0.216,2961.0,2960.9,0.001]
[1764020686896,0.216,2961.0,2960.9,0.1672]
[1764020687132,5.17887825,2961.0,2960.9,0.001]
[1764020687307,5.9398944,2961.0,2960.9,0.001]
[1764020689334,5.1135904,2961.0,2960.9,0.001]
[1764020689515,5.5822904,2961.0,2960.9,0.001]
[1764020689902,5.9877944,2961.0,2960.9,0.001]
[1764020690133,6.45571985,2961.0,2960.9,0.001]
[1764020690337,5.73831042,2961.0,2960.9,0.001]
[1764020697617,4.62500642,2961.0,2960.9,0.001]
[1764020697829,0.52699759,2961.0,2960.9,0.001]
[1764020698032,1.02529759,2961.0,2960.9,0.001]
[1764020698227,1.50469759,2961.0,2960.9,0.001]
[1764020698436,1.91020159,2961.0,2960.9,0.001]
[1764020698672,2.77662361,2961.0,2960.9,0.001]
[1764020698845,2.56062361,2961.0,2960.9,0.001]
[1764020699171,3.493985,2961.0,2960.9,0.001]
[1764020699344,4.21957911,2961.0,2960.9,0.001]
[1764020699730,7.59681652,2961.0,2960.9,0.001]
[1764020700761,11.004686,2960.9,2959.5,0.1662]
[1764020700962,0.405504,2960.1,2959.5,0.1662]
[1764020701135,0.52699759,2960.0,2959.5,0.1662]
[1764020701532,0.52699759,2960.0,2959.9,0.1672]
[1764020701533,0.31099759,2960.0,2959.9,0.1672]
[1764020701734,0.216,2960.0,2959.9,0.1672]
[1764020701929,0.31099759,2960.2,2959.9,0.3344]
[1764020702153,0.216,2960.0,2959.9,0.1672]
[1764020702562,0.216,2960.0,2959.9,0.3344]
[1764020702952,0.31099759,2960.2,2959.9,0.3344]
[1764020703152,1.02823607,2960.6,2960.1,0.1672]
[1764020703354,1.02823607,2960.5,2960.1,0.1672]
[1764020703555,0.31099759,2960.4,2960.2,0.1672]
[1764020703865,0.31148953,2960.9,2960.3,6.756072]
[1764020704166,1.50850288,2961.1,2959.5,0.1662]
[1764020704366,4.62243147,2961.0,2960.2,0.1672]
[1764020704548,0.31148953,2960.9,2960.2,0.1672]
[1764020705179,0.31148953,2960.9,2960.1,0.1672]
[1764020705467,1.58687534,2960.8,2959.9,0.001]
[1764020705655,6.75538742,2960.6,2959.9,0.001]
[1764020705972,0.52748953,2960.5,2959.9,0.001]
[1764020706171,0.71699353,2960.4,2959.9,0.001]
[1764020706369,1.24306445,2960.3,2959.9,0.001]
[1764020706542,0.31148953,2960.2,2959.9,0.001]
[1764020706741,0.216,2960.1,2959.9,0.001]
[1764020706958,0.31148953,2960.0,2959.9,0.001]
[1764020707364,0.31148953,2960.0,2959.9,0.1682]
[1764020708493,1.02578953,2960.0,2959.9,0.001]
[1764020708776,4.08032409,2960.0,2959.9,0.001]
[1764020709116,5.77679641,2960.0,2959.9,0.001]
[1764020709266,6.67554345,2960.0,2959.9,0.001]
[1764020709575,4.79909641,2960.0,2959.9,0.001]
[1764020709742,5.29739641,2960.0,2959.9,0.001]
[1764020709943,6.67554345,2960.0,2959.9,0.001]
[1764020710186,6.67554345,2960.0,2956.5,3.03057065]
[1764020710187,0.09678965,2958.5,2956.1,7.21935047]
[1764020710396,0.1846,2957.9,2956.8,3.50843451]
[1764020710675,1.92700823,2958.3,2956.9,7.2336405]
[1764020710883,0.31148953,2958.2,2957.0,1.40672894]
[1764020711065,0.31148953,2958.3,2957.3,6.96571639]
[1764020711237,0.1762,2959.0,2957.4,0.03381348]
[1764020711591,0.1762,2959.0,2958.9,0.4719]
[1764020712192,0.1762,2959.0,2958.9,4.32133432]
[1764020712492,0.1762,2959.0,2958.9,4.77017775]
[1764020713170,0.1762,2959.0,2958.9,4.32133432]
[1764020713359,0.1762,2959.0,2958.9,5.04692843]
[1764020715047,0.1762,2959.0,2958.9,0.9417]
[1764020715249,0.3932,2959.0,2958.9,0.4719]
[1764020715946,0.3932,2959.0,2958.7,0.1671]
[1764020716143,0.3932,2959.0,2958.1,0.1671]
[1764020716144,0.4983,2958.8,2958.1,0.1671]
[1764020716459,0.31172184,2958.7,2958.1,0.1671]
[1764020716845,1.02957179,2958.7,2958.1,0.1671]
[1764020717058,0.31172184,2958.6,2958.1,0.1671]
[1764020717241,1.02905253,2958.8,2958.1,0.6369]
[1764020717540,1.24605253,2958.7,2958.1,0.6369]
[1764020717745,0.31172184,2958.6,2958.1,0.6369]
[1764020718148,3.9086182,2958.7,2958.1,0.1671]
[1764020718351,1.02870728,2958.6,2957.6,0.1671]
[1764020718567,6.96571639,2958.3,2957.1,3.38168795]
[1764020718766,1.02823667,2958.2,2957.1,3.38168795]
[1764020718972,0.31172184,2958.1,2957.2,0.72559411]
[1764020719146,1.11111715,2958.1,2957.2,0.72559411]
[1764020719347,0.217,2958.0,2957.1,7.23317947]
[1764020719541,0.52797564,2958.0,2957.2,0.72559411]
[1764020719747,0.217,2958.0,2957.1,3.85148795]
[1764020720078,3.59767197,2958.0,2957.1,4.591528]
[1764020720263,0.217,2958.0,2957.2,1.20959411]
[1764020720481,3.38066851,2958.0,2957.2,1.20959411]
[1764020720688,1.54506164,2958.5,2957.9,0.47]
[1764020720872,1.24344364,2958.4,2957.3,0.484]
[1764020721067,0.52777652,2958.3,2957.3,0.484]
[1764020721394,0.217,2958.3,2957.3,0.484]
[1764020721996,0.52773809,2958.3,2957.4,6.76269696]
[1764020722193,3.90806361,2958.3,2957.4,6.76269696]
[1764020722398,3.98813188,2958.3,2957.4,3.86534848]
[1764020722594,3.98813188,2958.3,2957.4,7.24669696]
[1764020722794,0.60780636,2958.3,2957.4,7.24669696]
[1764020722993,0.39080636,2958.3,2957.5,0.484]
[1764020723192,0.217,2958.2,2957.5,0.484]
[1764020723598,1.09634638,2958.9,2958.1,0.6371]
[1764020723801,0.52763922,2958.8,2958.2,0.954]
[1764020723986,0.52763922,2958.8,2958.2,4.33434341]
[1764020724193,0.89674638,2959.2,2958.3,0.484]
[1764020724507,1.0263589,2959.1,2958.7,0.47]
[1764020724732,0.89674638,2959.7,2958.7,0.47]
[1764020724893,0.52767553,2959.6,2959.0,0.47]
[1764020725207,1.55642233,2959.6,2959.0,0.47]
[1764020725411,1.02629343,2959.5,2959.0,0.47]
[1764020725583,0.217,2959.4,2959.1,0.167]
[1764020725921,0.31081648,2959.6,2959.1,4.03039093]
[1764020726212,1.09634638,2960.1,2959.1,4.03039093]
[1764020726213,0.217,2959.5,2959.3,0.47]
[1764020726386,1.02681567,2959.9,2959.3,0.47]
[1764020726574,0.52781648,2959.8,2959.4,0.47]
[1764020726773,0.217,2959.8,2959.4,0.47]
[1764020726970,0.217,2959.8,2959.4,0.954]
[1764020727195,0.52799201,2959.8,2959.4,0.47]
[1764020727408,0.217,2959.8,2959.4,0.47]
[1764020727587,0.5281113,2959.8,2959.4,0.47]
[1764020727786,11.922102,2958.2,2957.1,0.001]
[1764020728041,10.34618768,2958.2,2957.1,0.2003]
[1764020728214,0.89674638,2958.0,2957.1,0.6843]
[1764020728416,0.53085057,2957.9,2957.1,0.6843]
[1764020728617,1.02673825,2957.9,2957.1,0.6843]
[1764020728925,1.24673825,2957.8,2957.1,0.6843]
[1764020729125,1.02673825,2957.7,2957.1,0.2003]
[1764020729334,1.02673825,2957.6,2957.1,0.2003]
[1764020729538,0.21434846,2957.7,2957.1,0.2003]
[1764020729735,0.31085404,2957.7,2957.1,0.2003]
[1764020730042,6.76201102,2957.7,2957.1,0.2003]
[1764020730219,0.31085404,2957.6,2957.1,0.2003]
[1764020730420,0.22,2957.5,2957.1,0.6843]
[1764020730620,0.22,2957.4,2957.1,4.06594081]
[1764020730820,0.22,2957.3,2957.2,0.484]
[1764020731023,0.22,2957.3,2957.1,0.001]
[1764020731616,0.602504,2957.2,2957.1,0.001]
[1764020731835,0.31077715,2957.2,2957.1,0.2003]
[1764020732037,3.3806626,2958.0,2957.1,1.1543]
[1764020732038,3.3807769,2957.9,2957.1,1.1543]
[1764020732242,1.24642213,2957.8,2957.1,1.1543]
[1764020732546,0.31066833,2957.7,2957.1,1.1543]
[1764020732739,0.33806626,2958.0,2957.2,0.484]
[1764020732740,0.22,2957.6,2957.2,0.484]
[1764020733669,6.96571639,2957.6,2957.1,0.001]
[1764020733871,3.48007716,2957.2,2957.1,0.001]
[1764020734045,4.50638546,2957.2,2957.1,0.001]
[1764020734236,4.60488546,2957.2,2957.1,0.001]
[1764020734738,4.72638546,2957.2,2957.1,0.001]
[1764020734938,4.50638546,2957.2,2957.1,0.001]
[1764020735138,1.0263083,2957.2,2957.1,0.6703]
[1764020735359,1.2463083,2957.2,2957.1,0.2003]
[1764020735560,3.91220024,2957.2,2957.1,0.001]
[1764020735749,4.62788546,2957.2,2957.1,0.001]
[1764020736152,4.72638546,2957.2,2957.1,0.001]
[1764020736355,6.66155165,2957.2,2957.1,0.001]
[1764020736771,7.16555565,2957.2,2957.1,0.001]
[1764020736943,7.06705565,2957.2,2957.1,0.001]
[1764020737145,7.89114976,2957.2,2957.1,0.001]
[1764020737342,8.78789614,2957.2,2957.1,0.001]
[1764020738170,3.85822087,2957.2,2957.1,0.001]
[1764020738370,4.62788546,2957.2,2957.1,0.2003]
[1764020738570,4.62788546,2957.2,2957.1,0.001]
[1764020739872,4.82488546,2957.2,2957.1,0.001]
[1764020740073,6.43176672,2957.2,2957.1,0.001]
[1764020740376,7.22943313,2957.2,2957.1,0.001]
[1764020741075,6.91093313,2957.2,2957.1,0.001]
[1764020741264,1.0263083,2957.2,2957.1,0.001]
[1764020741462,4.01070024,2957.2,2957.1,0.001]
[1764020741662,6.64764141,2957.2,2957.1,0.001]
[1764020742174,5.45197957,2957.2,2957.1,0.001]
[1764020742376,30.0,2957.1,2956.9,0.001]
[1764020742677,1.13109811,2956.6,2955.5,0.484]
[1764020742843,7.86156074,2956.3,2955.5,0.484]
[1764020743047,2.70830872,2956.2,2955.5,0.484]
[1764020743248,1.2463083,2956.1,2955.5,0.484]
[1764020743484,0.31062308,2956.0,2955.5,0.484]
[1764020743681,0.31062308,2956.0,2955.0,0.167]
[1764020743682,7.68184347,2955.9,2955.0,0.167]
[1764020743979,0.89584435,2955.7,2955.1,0.1993]
[1764020744182,3.69403084,2955.6,2955.1,0.1993]
[1764020744480,9.10786904,2955.5,2954.4,0.484]
[1764020744659,3.17211753,2955.4,2954.4,0.484]
[1764020744857,1.0263083,2955.3,2954.4,0.484]
[1764020745057,0.53062308,2955.2,2954.5,0.03384667]
[1764020745261,0.53062308,2955.2,2952.2,0.1993]
[1764020745262,0.0985,2954.5,2952.2,0.1993]
[1764020745580,0.89584435,2955.0,2953.2,3.30107]
[1764020745778,0.89584435,2955.7,2954.9,0.1993]
[1764020745978,0.222,2955.7,2954.9,0.2003]
[1764020746177,0.222,2955.7,2955.0,3.86809475]
[1764020746379,0.71594898,2956.1,2955.1,0.89083948]
[1764020746584,0.53265267,2956.0,2955.1,0.89083948]
[1764020746783,0.222,2956.0,2955.2,0.484]
[1764020746987,0.31059887,2956.3,2955.3,0.03383751]
[1764020747177,0.222,2956.2,2955.2,0.484]
[1764020747373,0.222,2956.5,2955.3,0.1993]
[1764020747681,0.222,2956.4,2955.3,0.1993]
[1764020747881,0.222,2956.4,2955.4,0.484]
[1764020748095,0.53264736,2956.4,2955.4,0.484]
[1764020748299,0.222,2956.4,2955.5,6.76704448]
[1764020748658,0.31067056,2956.4,2955.6,1.21330445]
[1764020749354,0.31067056,2956.4,2955.7,0.4882]
[1764020749757,1.02611294,2956.4,2955.7,0.4882]
[1764020749955,0.31067056,2956.3,2955.7,0.4882]
[1764020750183,3.91529245,2956.3,2955.7,0.4882]
[1764020750388,4.40593449,2956.3,2955.7,0.4882]
[1764020750855,0.3102999,2956.2,2955.7,0.4882]
[1764020752404,0.222,2956.2,2955.7,3.87147514]
[1764020752694,0.222,2956.1,2955.7,3.87146687]
[1764020752903,0.42036534,2956.3,2955.7,3.38326687]
[1764020753100,0.222,2956.1,2955.8,0.4717]
[1764020753599,0.222,2956.2,2955.8,0.4717]
[1764020754372,0.42052178,2956.3,2955.8,0.4717]
[1764020754566,0.222,2956.2,2955.8,3.85485475]
[1764020754763,0.53252178,2956.2,2955.8,0.4717]
[1764020754965,0.222,2956.2,2955.8,0.4717]
[1764020755576,0.53268197,2956.2,2955.8,0.4717]
[1764020755762,1.00686939,2956.2,2955.4,3.38360381]